{"text_format":"3","workbook":"xlsx","n_sheets":3,"sheets":["Inicio","Rueda presupuestaria","Datos"],"not_rendered":{"charts":1,"defined_names":5},"read":"whole","date_system":"1900"}

{"sheet":"Inicio","index":0,"n_rows":7,"n_cols":2,"rows_kept":7}
[null,"Acerca de la plantilla"]
[null,"Realice un seguimiento de sus ahorros y gastos mensuales con esta plantilla."]
[null,"Escriba los detalles de los gastos en la tabla, así como los ingresos mensuales, para calcular los ahorros."]
[null,"El gráfico de anillos que muestra los gastos y los ahorros se actualiza automáticamente."]
[null,"Nota:"]
[null,"Se facilitan instrucciones adicionales en la columna A de la hoja de cálculo RUEDA PRESUPUESTARIA. Este texto se ha ocultado de forma intencionada. Para eliminar el texto, seleccione la columna A y, a continuación, ELIMINAR. Para mostrar el texto, seleccione la columna A y, a continuación, cambie el color de fuente."]
[null,"Para obtener más información sobre las tablas, presione las teclas MAYÚS y F10 dentro de la tabla, seleccione la opción TABLA y, después, TEXTO ALTERNATIVO."]

{"sheet":"Rueda presupuestaria","index":1,"n_rows":23,"n_cols":7,"rows_kept":23,"merged":[[0,1,0,2],[0,3,0,6]]}
[null,"Rueda presupuestaria",null,"Rellene la tabla en esta plantilla. En el gráfico se mostrarán los gastos mensuales en relación con los ingresos mensuales. También se calcularán los porcentajes para mostrar el importe que se ahorrará."]
[null,"Ingresos \nMensuales",{"$nulls":4},"Ahorros \nImporte"]
[null,{"v":5738,"d":"5,738 €"},{"$nulls":4},{"$f":"Ahorros","v":{"v":2777,"d":"2,777 €"}}]
[{"$nulls":6},"Valor calculado \natomáticamente"]
[]
[null,"Gastos","Categoría","Importe","Frecuencia","Importe mensual","% del total"]
[null,"Seguro","Transporte",{"v":300,"d":"300 €"},"Cada seis meses",{"$f":"IF(Gastos[[#This Row],[Importe]]>0,IF(Gastos[[#This Row],[Frecuencia]]<>\"\",ROUND(IF(Gastos[[#This Row],[Frecuencia]]=\"Mensual\",Gastos[Importe],IF(Gastos[[#This Row],[Frecuencia]]=\"Semanal\",Gastos[[#This Row],[Importe]]*4,IF(Gastos[[#This Row],[Frecuencia]]=\"Trimestral\",Gastos[[#This Row],[Importe]]/3,IF(Gastos[[#This Row],[Frecuencia]]=\"Cada seis meses\",Gastos[[#This Row],[Importe]]/6,IF(Gastos[[#This Row],[Frecuencia]]=\"Anual\",Gastos[[#This Row],[Importe]]/12,IF(Gastos[[#This Row],[Frecuencia]]=\"Cada dos semanas\",Gastos[[#This Row],[Importe]]*2,IF(Gastos[[#This Row],[Frecuencia]]=\"Cada dos meses\",Gastos[[#This Row],[Importe]]/2,\"\"))))))),0),\"\"),\"\")","v":{"v":50,"d":"50 €"}},{"$f":"IF(Gastos[[#This Row],[Importe mensual]]<>\"\",Gastos[[#This Row],[Importe mensual]]/Ingresos,\"\")","v":{"v":8.71383757406762E-3,"d":"1%"}}]
[null,"Combustible","Transporte",{"v":25,"d":"25 €"},"Semanal",{"$f":"IF(Gastos[[#This Row],[Importe]]>0,IF(Gastos[[#This Row],[Frecuencia]]<>\"\",ROUND(IF(Gastos[[#This Row],[Frecuencia]]=\"Mensual\",Gastos[Importe],IF(Gastos[[#This Row],[Frecuencia]]=\"Semanal\",Gastos[[#This Row],[Importe]]*4,IF(Gastos[[#This Row],[Frecuencia]]=\"Trimestral\",Gastos[[#This Row],[Importe]]/3,IF(Gastos[[#This Row],[Frecuencia]]=\"Cada seis meses\",Gastos[[#This Row],[Importe]]/6,IF(Gastos[[#This Row],[Frecuencia]]=\"Anual\",Gastos[[#This Row],[Importe]]/12,IF(Gastos[[#This Row],[Frecuencia]]=\"Cada dos semanas\",Gastos[[#This Row],[Importe]]*2,IF(Gastos[[#This Row],[Frecuencia]]=\"Cada dos meses\",Gastos[[#This Row],[Importe]]/2,\"\"))))))),0),\"\"),\"\")","v":{"v":100,"d":"100 €"}},{"$f":"IF(Gastos[[#This Row],[Importe mensual]]<>\"\",Gastos[[#This Row],[Importe mensual]]/Ingresos,\"\")","v":{"v":0.01742767514813524,"d":"2%"}}]
[null,"Pago del coche","Transporte",{"v":200,"d":"200 €"},"Mensual",{"$f":"IF(Gastos[[#This Row],[Importe]]>0,IF(Gastos[[#This Row],[Frecuencia]]<>\"\",ROUND(IF(Gastos[[#This Row],[Frecuencia]]=\"Mensual\",Gastos[Importe],IF(Gastos[[#This Row],[Frecuencia]]=\"Semanal\",Gastos[[#This Row],[Importe]]*4,IF(Gastos[[#This Row],[Frecuencia]]=\"Trimestral\",Gastos[[#This Row],[Importe]]/3,IF(Gastos[[#This Row],[Frecuencia]]=\"Cada seis meses\",Gastos[[#This Row],[Importe]]/6,IF(Gastos[[#This Row],[Frecuencia]]=\"Anual\",Gastos[[#This Row],[Importe]]/12,IF(Gastos[[#This Row],[Frecuencia]]=\"Cada dos semanas\",Gastos[[#This Row],[Importe]]*2,IF(Gastos[[#This Row],[Frecuencia]]=\"Cada dos meses\",Gastos[[#This Row],[Importe]]/2,\"\"))))))),0),\"\"),\"\")","v":{"v":200,"d":"200 €"}},{"$f":"IF(Gastos[[#This Row],[Importe mensual]]<>\"\",Gastos[[#This Row],[Importe mensual]]/Ingresos,\"\")","v":{"v":0.03485535029627048,"d":"3%"}}]
[null,"Hipoteca","Casa",{"v":1600,"d":"1,600 €"},"Mensual",{"$f":"IF(Gastos[[#This Row],[Importe]]>0,IF(Gastos[[#This Row],[Frecuencia]]<>\"\",ROUND(IF(Gastos[[#This Row],[Frecuencia]]=\"Mensual\",Gastos[Importe],IF(Gastos[[#This Row],[Frecuencia]]=\"Semanal\",Gastos[[#This Row],[Importe]]*4,IF(Gastos[[#This Row],[Frecuencia]]=\"Trimestral\",Gastos[[#This Row],[Importe]]/3,IF(Gastos[[#This Row],[Frecuencia]]=\"Cada seis meses\",Gastos[[#This Row],[Importe]]/6,IF(Gastos[[#This Row],[Frecuencia]]=\"Anual\",Gastos[[#This Row],[Importe]]/12,IF(Gastos[[#This Row],[Frecuencia]]=\"Cada dos semanas\",Gastos[[#This Row],[Importe]]*2,IF(Gastos[[#This Row],[Frecuencia]]=\"Cada dos meses\",Gastos[[#This Row],[Importe]]/2,\"\"))))))),0),\"\"),\"\")","v":{"v":1600,"d":"1,600 €"}},{"$f":"IF(Gastos[[#This Row],[Importe mensual]]<>\"\",Gastos[[#This Row],[Importe mensual]]/Ingresos,\"\")","v":{"v":0.27884280237016384,"d":"28%"}}]
[null,"Cable","Casa",{"v":60,"d":"60 €"},"Mensual",{"$f":"IF(Gastos[[#This Row],[Importe]]>0,IF(Gastos[[#This Row],[Frecuencia]]<>\"\",ROUND(IF(Gastos[[#This Row],[Frecuencia]]=\"Mensual\",Gastos[Importe],IF(Gastos[[#This Row],[Frecuencia]]=\"Semanal\",Gastos[[#This Row],[Importe]]*4,IF(Gastos[[#This Row],[Frecuencia]]=\"Trimestral\",Gastos[[#This Row],[Importe]]/3,IF(Gastos[[#This Row],[Frecuencia]]=\"Cada seis meses\",Gastos[[#This Row],[Importe]]/6,IF(Gastos[[#This Row],[Frecuencia]]=\"Anual\",Gastos[[#This Row],[Importe]]/12,IF(Gastos[[#This Row],[Frecuencia]]=\"Cada dos semanas\",Gastos[[#This Row],[Importe]]*2,IF(Gastos[[#This Row],[Frecuencia]]=\"Cada dos meses\",Gastos[[#This Row],[Importe]]/2,\"\"))))))),0),\"\"),\"\")","v":{"v":60,"d":"60 €"}},{"$f":"IF(Gastos[[#This Row],[Importe mensual]]<>\"\",Gastos[[#This Row],[Importe mensual]]/Ingresos,\"\")","v":{"v":0.010456605088881143,"d":"1%"}}]
[null,"Noche de películas","Entretenimiento",{"v":70,"d":"70 €"},"Mensual",{"$f":"IF(Gastos[[#This Row],[Importe]]>0,IF(Gastos[[#This Row],[Frecuencia]]<>\"\",ROUND(IF(Gastos[[#This Row],[Frecuencia]]=\"Mensual\",Gastos[Importe],IF(Gastos[[#This Row],[Frecuencia]]=\"Semanal\",Gastos[[#This Row],[Importe]]*4,IF(Gastos[[#This Row],[Frecuencia]]=\"Trimestral\",Gastos[[#This Row],[Importe]]/3,IF(Gastos[[#This Row],[Frecuencia]]=\"Cada seis meses\",Gastos[[#This Row],[Importe]]/6,IF(Gastos[[#This Row],[Frecuencia]]=\"Anual\",Gastos[[#This Row],[Importe]]/12,IF(Gastos[[#This Row],[Frecuencia]]=\"Cada dos semanas\",Gastos[[#This Row],[Importe]]*2,IF(Gastos[[#This Row],[Frecuencia]]=\"Cada dos meses\",Gastos[[#This Row],[Importe]]/2,\"\"))))))),0),\"\"),\"\")","v":{"v":70,"d":"70 €"}},{"$f":"IF(Gastos[[#This Row],[Importe mensual]]<>\"\",Gastos[[#This Row],[Importe mensual]]/Ingresos,\"\")","v":{"v":0.012199372603694667,"d":"1%"}}]
[null,"Zapatillas","Varios",{"v":300,"d":"300 €"},"Anual",{"$f":"IF(Gastos[[#This Row],[Importe]]>0,IF(Gastos[[#This Row],[Frecuencia]]<>\"\",ROUND(IF(Gastos[[#This Row],[Frecuencia]]=\"Mensual\",Gastos[Importe],IF(Gastos[[#This Row],[Frecuencia]]=\"Semanal\",Gastos[[#This Row],[Importe]]*4,IF(Gastos[[#This Row],[Frecuencia]]=\"Trimestral\",Gastos[[#This Row],[Importe]]/3,IF(Gastos[[#This Row],[Frecuencia]]=\"Cada seis meses\",Gastos[[#This Row],[Importe]]/6,IF(Gastos[[#This Row],[Frecuencia]]=\"Anual\",Gastos[[#This Row],[Importe]]/12,IF(Gastos[[#This Row],[Frecuencia]]=\"Cada dos semanas\",Gastos[[#This Row],[Importe]]*2,IF(Gastos[[#This Row],[Frecuencia]]=\"Cada dos meses\",Gastos[[#This Row],[Importe]]/2,\"\"))))))),0),\"\"),\"\")","v":{"v":25,"d":"25 €"}},{"$f":"IF(Gastos[[#This Row],[Importe mensual]]<>\"\",Gastos[[#This Row],[Importe mensual]]/Ingresos,\"\")","v":{"v":4.35691878703381E-3,"d":"0%"}}]
[null,"Comida para el perro","Varios",{"v":60,"d":"60 €"},"Mensual",{"$f":"IF(Gastos[[#This Row],[Importe]]>0,IF(Gastos[[#This Row],[Frecuencia]]<>\"\",ROUND(IF(Gastos[[#This Row],[Frecuencia]]=\"Mensual\",Gastos[Importe],IF(Gastos[[#This Row],[Frecuencia]]=\"Semanal\",Gastos[[#This Row],[Importe]]*4,IF(Gastos[[#This Row],[Frecuencia]]=\"Trimestral\",Gastos[[#This Row],[Importe]]/3,IF(Gastos[[#This Row],[Frecuencia]]=\"Cada seis meses\",Gastos[[#This Row],[Importe]]/6,IF(Gastos[[#This Row],[Frecuencia]]=\"Anual\",Gastos[[#This Row],[Importe]]/12,IF(Gastos[[#This Row],[Frecuencia]]=\"Cada dos semanas\",Gastos[[#This Row],[Importe]]*2,IF(Gastos[[#This Row],[Frecuencia]]=\"Cada dos meses\",Gastos[[#This Row],[Importe]]/2,\"\"))))))),0),\"\"),\"\")","v":{"v":60,"d":"60 €"}},{"$f":"IF(Gastos[[#This Row],[Importe mensual]]<>\"\",Gastos[[#This Row],[Importe mensual]]/Ingresos,\"\")","v":{"v":0.010456605088881143,"d":"1%"}}]
[null,"Seguro de mascotas","Varios",{"v":70,"d":"70 €"},"Anual",{"$f":"IF(Gastos[[#This Row],[Importe]]>0,IF(Gastos[[#This Row],[Frecuencia]]<>\"\",ROUND(IF(Gastos[[#This Row],[Frecuencia]]=\"Mensual\",Gastos[Importe],IF(Gastos[[#This Row],[Frecuencia]]=\"Semanal\",Gastos[[#This Row],[Importe]]*4,IF(Gastos[[#This Row],[Frecuencia]]=\"Trimestral\",Gastos[[#This Row],[Importe]]/3,IF(Gastos[[#This Row],[Frecuencia]]=\"Cada seis meses\",Gastos[[#This Row],[Importe]]/6,IF(Gastos[[#This Row],[Frecuencia]]=\"Anual\",Gastos[[#This Row],[Importe]]/12,IF(Gastos[[#This Row],[Frecuencia]]=\"Cada dos semanas\",Gastos[[#This Row],[Importe]]*2,IF(Gastos[[#This Row],[Frecuencia]]=\"Cada dos meses\",Gastos[[#This Row],[Importe]]/2,\"\"))))))),0),\"\"),\"\")","v":{"v":6,"d":"6 €"}},{"$f":"IF(Gastos[[#This Row],[Importe mensual]]<>\"\",Gastos[[#This Row],[Importe mensual]]/Ingresos,\"\")","v":{"v":1.0456605088881143E-3,"d":"0%"}}]
[null,"Comestibles","Comida",{"v":100,"d":"100 €"},"Semanal",{"$f":"IF(Gastos[[#This Row],[Importe]]>0,IF(Gastos[[#This Row],[Frecuencia]]<>\"\",ROUND(IF(Gastos[[#This Row],[Frecuencia]]=\"Mensual\",Gastos[Importe],IF(Gastos[[#This Row],[Frecuencia]]=\"Semanal\",Gastos[[#This Row],[Importe]]*4,IF(Gastos[[#This Row],[Frecuencia]]=\"Trimestral\",Gastos[[#This Row],[Importe]]/3,IF(Gastos[[#This Row],[Frecuencia]]=\"Cada seis meses\",Gastos[[#This Row],[Importe]]/6,IF(Gastos[[#This Row],[Frecuencia]]=\"Anual\",Gastos[[#This Row],[Importe]]/12,IF(Gastos[[#This Row],[Frecuencia]]=\"Cada dos semanas\",Gastos[[#This Row],[Importe]]*2,IF(Gastos[[#This Row],[Frecuencia]]=\"Cada dos meses\",Gastos[[#This Row],[Importe]]/2,\"\"))))))),0),\"\"),\"\")","v":{"v":400,"d":"400 €"}},{"$f":"IF(Gastos[[#This Row],[Importe mensual]]<>\"\",Gastos[[#This Row],[Importe mensual]]/Ingresos,\"\")","v":{"v":0.06971070059254096,"d":"7%"}}]
[null,"Café","Comida",{"v":25,"d":"25 €"},"Semanal",{"$f":"IF(Gastos[[#This Row],[Importe]]>0,IF(Gastos[[#This Row],[Frecuencia]]<>\"\",ROUND(IF(Gastos[[#This Row],[Frecuencia]]=\"Mensual\",Gastos[Importe],IF(Gastos[[#This Row],[Frecuencia]]=\"Semanal\",Gastos[[#This Row],[Importe]]*4,IF(Gastos[[#This Row],[Frecuencia]]=\"Trimestral\",Gastos[[#This Row],[Importe]]/3,IF(Gastos[[#This Row],[Frecuencia]]=\"Cada seis meses\",Gastos[[#This Row],[Importe]]/6,IF(Gastos[[#This Row],[Frecuencia]]=\"Anual\",Gastos[[#This Row],[Importe]]/12,IF(Gastos[[#This Row],[Frecuencia]]=\"Cada dos semanas\",Gastos[[#This Row],[Importe]]*2,IF(Gastos[[#This Row],[Frecuencia]]=\"Cada dos meses\",Gastos[[#This Row],[Importe]]/2,\"\"))))))),0),\"\"),\"\")","v":{"v":100,"d":"100 €"}},{"$f":"IF(Gastos[[#This Row],[Importe mensual]]<>\"\",Gastos[[#This Row],[Importe mensual]]/Ingresos,\"\")","v":{"v":0.01742767514813524,"d":"2%"}}]
[null,"Equipo de escalada","Entretenimiento",{"v":170,"d":"170 €"},"Anual",{"$f":"IF(Gastos[[#This Row],[Importe]]>0,IF(Gastos[[#This Row],[Frecuencia]]<>\"\",ROUND(IF(Gastos[[#This Row],[Frecuencia]]=\"Mensual\",Gastos[Importe],IF(Gastos[[#This Row],[Frecuencia]]=\"Semanal\",Gastos[[#This Row],[Importe]]*4,IF(Gastos[[#This Row],[Frecuencia]]=\"Trimestral\",Gastos[[#This Row],[Importe]]/3,IF(Gastos[[#This Row],[Frecuencia]]=\"Cada seis meses\",Gastos[[#This Row],[Importe]]/6,IF(Gastos[[#This Row],[Frecuencia]]=\"Anual\",Gastos[[#This Row],[Importe]]/12,IF(Gastos[[#This Row],[Frecuencia]]=\"Cada dos semanas\",Gastos[[#This Row],[Importe]]*2,IF(Gastos[[#This Row],[Frecuencia]]=\"Cada dos meses\",Gastos[[#This Row],[Importe]]/2,\"\"))))))),0),\"\"),\"\")","v":{"v":14,"d":"14 €"}},{"$f":"IF(Gastos[[#This Row],[Importe mensual]]<>\"\",Gastos[[#This Row],[Importe mensual]]/Ingresos,\"\")","v":{"v":2.4398745207389336E-3,"d":"0%"}}]
[null,"Cuota del gimnasio","Varios",{"v":60,"d":"60 €"},"Mensual",{"$f":"IF(Gastos[[#This Row],[Importe]]>0,IF(Gastos[[#This Row],[Frecuencia]]<>\"\",ROUND(IF(Gastos[[#This Row],[Frecuencia]]=\"Mensual\",Gastos[Importe],IF(Gastos[[#This Row],[Frecuencia]]=\"Semanal\",Gastos[[#This Row],[Importe]]*4,IF(Gastos[[#This Row],[Frecuencia]]=\"Trimestral\",Gastos[[#This Row],[Importe]]/3,IF(Gastos[[#This Row],[Frecuencia]]=\"Cada seis meses\",Gastos[[#This Row],[Importe]]/6,IF(Gastos[[#This Row],[Frecuencia]]=\"Anual\",Gastos[[#This Row],[Importe]]/12,IF(Gastos[[#This Row],[Frecuencia]]=\"Cada dos semanas\",Gastos[[#This Row],[Importe]]*2,IF(Gastos[[#This Row],[Frecuencia]]=\"Cada dos meses\",Gastos[[#This Row],[Importe]]/2,\"\"))))))),0),\"\"),\"\")","v":{"v":60,"d":"60 €"}},{"$f":"IF(Gastos[[#This Row],[Importe mensual]]<>\"\",Gastos[[#This Row],[Importe mensual]]/Ingresos,\"\")","v":{"v":0.010456605088881143,"d":"1%"}}]
[null,"Auriculares","Entretenimiento",{"v":50,"d":"50 €"},"Anual",{"$f":"IF(Gastos[[#This Row],[Importe]]>0,IF(Gastos[[#This Row],[Frecuencia]]<>\"\",ROUND(IF(Gastos[[#This Row],[Frecuencia]]=\"Mensual\",Gastos[Importe],IF(Gastos[[#This Row],[Frecuencia]]=\"Semanal\",Gastos[[#This Row],[Importe]]*4,IF(Gastos[[#This Row],[Frecuencia]]=\"Trimestral\",Gastos[[#This Row],[Importe]]/3,IF(Gastos[[#This Row],[Frecuencia]]=\"Cada seis meses\",Gastos[[#This Row],[Importe]]/6,IF(Gastos[[#This Row],[Frecuencia]]=\"Anual\",Gastos[[#This Row],[Importe]]/12,IF(Gastos[[#This Row],[Frecuencia]]=\"Cada dos semanas\",Gastos[[#This Row],[Importe]]*2,IF(Gastos[[#This Row],[Frecuencia]]=\"Cada dos meses\",Gastos[[#This Row],[Importe]]/2,\"\"))))))),0),\"\"),\"\")","v":{"v":4,"d":"4 €"}},{"$f":"IF(Gastos[[#This Row],[Importe mensual]]<>\"\",Gastos[[#This Row],[Importe mensual]]/Ingresos,\"\")","v":{"v":6.971070059254096E-4,"d":"0%"}}]
[null,"Corte de pelo","Varios",{"v":70,"d":"70 €"},"Mensual",{"$f":"IF(Gastos[[#This Row],[Importe]]>0,IF(Gastos[[#This Row],[Frecuencia]]<>\"\",ROUND(IF(Gastos[[#This Row],[Frecuencia]]=\"Mensual\",Gastos[Importe],IF(Gastos[[#This Row],[Frecuencia]]=\"Semanal\",Gastos[[#This Row],[Importe]]*4,IF(Gastos[[#This Row],[Frecuencia]]=\"Trimestral\",Gastos[[#This Row],[Importe]]/3,IF(Gastos[[#This Row],[Frecuencia]]=\"Cada seis meses\",Gastos[[#This Row],[Importe]]/6,IF(Gastos[[#This Row],[Frecuencia]]=\"Anual\",Gastos[[#This Row],[Importe]]/12,IF(Gastos[[#This Row],[Frecuencia]]=\"Cada dos semanas\",Gastos[[#This Row],[Importe]]*2,IF(Gastos[[#This Row],[Frecuencia]]=\"Cada dos meses\",Gastos[[#This Row],[Importe]]/2,\"\"))))))),0),\"\"),\"\")","v":{"v":70,"d":"70 €"}},{"$f":"IF(Gastos[[#This Row],[Importe mensual]]<>\"\",Gastos[[#This Row],[Importe mensual]]/Ingresos,\"\")","v":{"v":0.012199372603694667,"d":"1%"}}]
[null,"Videojuegos","Entretenimiento",{"v":100,"d":"100 €"},"Mensual",{"$f":"IF(Gastos[[#This Row],[Importe]]>0,IF(Gastos[[#This Row],[Frecuencia]]<>\"\",ROUND(IF(Gastos[[#This Row],[Frecuencia]]=\"Mensual\",Gastos[Importe],IF(Gastos[[#This Row],[Frecuencia]]=\"Semanal\",Gastos[[#This Row],[Importe]]*4,IF(Gastos[[#This Row],[Frecuencia]]=\"Trimestral\",Gastos[[#This Row],[Importe]]/3,IF(Gastos[[#This Row],[Frecuencia]]=\"Cada seis meses\",Gastos[[#This Row],[Importe]]/6,IF(Gastos[[#This Row],[Frecuencia]]=\"Anual\",Gastos[[#This Row],[Importe]]/12,IF(Gastos[[#This Row],[Frecuencia]]=\"Cada dos semanas\",Gastos[[#This Row],[Importe]]*2,IF(Gastos[[#This Row],[Frecuencia]]=\"Cada dos meses\",Gastos[[#This Row],[Importe]]/2,\"\"))))))),0),\"\"),\"\")","v":{"v":100,"d":"100 €"}},{"$f":"IF(Gastos[[#This Row],[Importe mensual]]<>\"\",Gastos[[#This Row],[Importe mensual]]/Ingresos,\"\")","v":{"v":0.01742767514813524,"d":"2%"}}]
[null,"Ropa","Varios",{"v":500,"d":"500 €"},"Anual",{"$f":"IF(Gastos[[#This Row],[Importe]]>0,IF(Gastos[[#This Row],[Frecuencia]]<>\"\",ROUND(IF(Gastos[[#This Row],[Frecuencia]]=\"Mensual\",Gastos[Importe],IF(Gastos[[#This Row],[Frecuencia]]=\"Semanal\",Gastos[[#This Row],[Importe]]*4,IF(Gastos[[#This Row],[Frecuencia]]=\"Trimestral\",Gastos[[#This Row],[Importe]]/3,IF(Gastos[[#This Row],[Frecuencia]]=\"Cada seis meses\",Gastos[[#This Row],[Importe]]/6,IF(Gastos[[#This Row],[Frecuencia]]=\"Anual\",Gastos[[#This Row],[Importe]]/12,IF(Gastos[[#This Row],[Frecuencia]]=\"Cada dos semanas\",Gastos[[#This Row],[Importe]]*2,IF(Gastos[[#This Row],[Frecuencia]]=\"Cada dos meses\",Gastos[[#This Row],[Importe]]/2,\"\"))))))),0),\"\"),\"\")","v":{"v":42,"d":"42 €"}},{"$f":"IF(Gastos[[#This Row],[Importe mensual]]<>\"\",Gastos[[#This Row],[Importe mensual]]/Ingresos,\"\")","v":{"v":7.3196235622168E-3,"d":"1%"}}]

{"sheet":"Datos","index":2,"n_rows":10,"n_cols":5,"rows_kept":10,"hidden":true}
["Esta hoja debe permanecer oculta"]
["Categorías","Importe por categoría","Porcentaje del total","Frecuencia","Ahorros"]
["Casa",{"$f":"IF(SUMIF(Gastos[Categoría],\"Casa\",Gastos[Importe mensual])>0,SUMIF(Gastos[Categoría],\"Casa\",Gastos[Importe mensual]),NA())","v":{"v":1660,"d":"1,660 €"}},{"$f":"IF(B3>0,B3/Ingresos,\"\")","v":{"v":0.289299407459045,"d":"29%"}},"Semanal",{"$f":"Ingresos-SUM(Gastos[Importe mensual])","v":{"v":2777,"d":"2,777 €"}}]
["Entretenimiento",{"$f":"IF(SUMIF(Gastos[Categoría],\"Entretenimiento\",Gastos[Importe mensual])>0,SUMIF(Gastos[Categoría],\"Entretenimiento\",Gastos[Importe mensual]),NA())","v":{"v":188,"d":"188 €"}},{"v":0.03276402927849425,"d":"3%"},"Mensual"]
["Transporte",{"$f":"IF(SUMIF(Gastos[Categoría],\"Transporte\",Gastos[Importe mensual])>0,SUMIF(Gastos[Categoría],\"Transporte\",Gastos[Importe mensual]),NA())","v":{"v":350,"d":"350 €"}},{"v":0.06099686301847333,"d":"6%"},"Trimestral"]
["Comida",{"$f":"IF(SUMIF(Gastos[Categoría],\"Comida\",Gastos[Importe mensual])>0,SUMIF(Gastos[Categoría],\"Comida\",Gastos[Importe mensual]),NA())","v":{"v":500,"d":"500 €"}},{"v":0.08713837574067619,"d":"9%"},"Cada seis meses"]
["Varios",{"$f":"IF(SUMIF(Gastos[Categoría],\"Varios\",Gastos[Importe mensual])>0,SUMIF(Gastos[Categoría],\"Varios\",Gastos[Importe mensual]),NA())","v":{"v":263,"d":"263 €"}},{"v":0.04583478563959568,"d":"5%"},"Anual"]
["Ahorros",{"$f":"IF(E3>0,E3,NA())","v":{"v":2777,"d":"2,777 €"}},{"v":0.4839665388637156,"d":"48%"},"Cada dos semanas"]
[{"$nulls":3},"Cada dos meses"]
[null,"TOTAL:",{"$f":"SUM(C3:C8)","v":{"v":1,"d":"100%"}}]